bitfinex/quotes_BTCUSD_20250206
["timestamp","ask_amount","ask_price","bid_price","bid_amount"]
[1738884660844,0.0813,96728.0,96709.0,0.206805]
[1738884661190,0.0813,96728.0,96721.0,0.155085]
[1738884661406,0.00022428,96741.0,96721.0,0.1705935]
[1738884661605,0.00022428,96741.0,96721.0,0.237085]
[1738884662393,0.00622428,96723.0,96722.0,0.00103382]
[1738884662588,0.00622428,96723.0,96721.0,0.237085]
[1738884662813,0.00022428,96723.0,96721.0,0.237085]
[1738884663016,0.00022428,96723.0,96722.0,0.00103377]
[1738884663831,0.00122428,96723.0,96722.0,0.00103377]
[1738884664469,0.00022428,96723.0,96722.0,0.00103377]
[1738884664708,0.00022428,96723.0,96722.0,0.001]
[1738884665288,0.00022428,96723.0,96722.0,0.00203378]
[1738884666941,0.00022428,96723.0,96722.0,0.10453743]
[1738884667160,0.00022428,96723.0,96722.0,0.30333743]
[1738884667378,0.00022428,96723.0,96722.0,0.30230365]
[1738884668020,0.00022428,96723.0,96722.0,0.30330365]
[1738884668354,0.00122428,96723.0,96722.0,0.30930365]
[1738884668711,0.00122428,96723.0,96722.0,0.45838665]
[1738884668923,0.00222428,96723.0,96722.0,0.46538665]
[1738884669357,0.00222428,96723.0,96722.0,0.46338665]
[1738884669753,0.00222428,96723.0,96722.0,0.46538665]
[1738884671423,0.00222428,96723.0,96722.0,0.53569514]
[1738884671613,0.00222428,96723.0,96722.0,0.46538665]
[1738884672508,0.00222428,96723.0,96722.0,0.40880588]
[1738884674878,0.00022428,96741.0,96722.0,0.40880588]
[1738884674879,0.00022428,96741.0,96740.0,0.155054]
[1738884675091,0.00036254,96741.0,96740.0,0.281354]
[1738884676223,0.00036254,96741.0,96740.0,0.38385765]
[1738884676359,0.00036254,96741.0,96740.0,0.48426772]
[1738884676563,0.00036254,96741.0,96740.0,0.38385765]
[1738884677277,0.00036254,96741.0,96740.0,0.5786196]
[1738884677491,0.00036254,96741.0,96740.0,0.5907746]
[1738884677946,0.00036254,96741.0,96740.0,0.5947746]
[1738884678516,0.00036254,96741.0,96740.0,0.5717746]
[1738884679529,0.00036254,96741.0,96740.0,0.5707746]
[1738884679943,0.00036254,96741.0,96740.0,0.5717746]
[1738884680566,0.00036254,96741.0,96740.0,0.5677746]
[1738884680774,0.00036254,96741.0,96740.0,0.318209]
[1738884680991,0.00036254,96741.0,96740.0,0.321209]
[1738884681776,0.00036254,96741.0,96740.0,0.168209]
[1738884682150,0.00036254,96741.0,96740.0,0.170209]
[1738884682366,0.00036254,96741.0,96740.0,0.167209]
[1738884682598,0.00036254,96741.0,96740.0,0.156054]
[1738884682992,0.00036254,96741.0,96740.0,0.155054]
[1738884683230,0.00036254,96741.0,96738.0,0.155056]
[1738884683552,0.00036254,96741.0,96739.0,0.155055]
[1738884683752,0.00036254,96741.0,96740.0,0.001]
[1738884684169,0.00036254,96741.0,96733.0,0.15]
[1738884684461,0.00036254,96741.0,96732.0,0.206755]
[1738884684462,0.08356254,96741.0,96718.0,0.0497]
[1738884684667,0.08356254,96741.0,96730.0,0.155069]
[1738884684887,0.08356254,96741.0,96732.0,0.155067]
[1738884685126,0.00927736,96740.0,96733.0,0.155065]
[1738884685337,0.00927736,96740.0,96721.0,0.35678]
[1738884685338,0.00927736,96740.0,96721.0,0.15]
[1738884685509,0.00927736,96740.0,96736.0,0.15506]
[1738884685715,0.08356254,96741.0,96737.0,0.155058]
[1738884686104,0.08356254,96741.0,96722.0,0.00103377]
[1738884686438,0.08356254,96741.0,96738.0,0.155057]
[1738884687628,0.08356254,96741.0,96721.0,0.18006447]
[1738884687824,0.08356254,96741.0,96721.0,0.15]
[1738884688115,0.00928107,96740.0,96734.0,0.155064]
[1738884688320,0.00928107,96740.0,96738.0,0.155057]
[1738884688636,0.08356254,96741.0,96736.0,0.206748]
[1738884688856,0.08356254,96741.0,96739.0,0.155055]
[1738884689474,0.00036254,96741.0,96739.0,0.155055]
[1738884690725,0.00036254,96741.0,96738.0,0.206742]
[1738884690900,0.00036254,96741.0,96740.0,0.155054]
[1738884692352,0.00036254,96741.0,96740.0,0.158054]
[1738884693299,0.00036254,96741.0,96740.0,0.159054]
[1738884693502,0.00036254,96741.0,96740.0,0.15708762]
[1738884693697,0.00036254,96741.0,96740.0,0.156054]
[1738884693929,0.00036254,96741.0,96740.0,0.159054]
[1738884694134,0.00036254,96741.0,96740.0,0.001]
[1738884694332,0.00036254,96741.0,96740.0,0.004]
[1738884694748,0.00036254,96741.0,96739.0,0.155054]
[1738884694975,0.00036254,96741.0,96740.0,0.002]
[1738884695197,0.00036254,96741.0,96740.0,0.001]
[1738884695606,0.00036254,96741.0,96739.0,0.155054]
[1738884698274,0.00036254,96741.0,96740.0,0.10353729]
[1738884698491,0.00036254,96741.0,96740.0,0.15323729]
[1738884701001,0.00036254,96741.0,96740.0,0.15823729]
[1738884701212,0.00036254,96741.0,96740.0,0.15923729]
[1738884701414,0.00036254,96741.0,96740.0,0.24063729]
[1738884701630,0.00036254,96741.0,96740.0,0.23860365]
[1738884701810,0.00036254,96741.0,96740.0,0.23960365]
[1738884702012,0.00036254,96741.0,96740.0,0.39865765]
[1738884702208,0.00036254,96741.0,96740.0,0.44640614]
[1738884703448,0.00036254,96741.0,96740.0,0.59640614]
[1738884705728,0.00036254,96741.0,96740.0,0.54865765]
[1738884705907,0.00036254,96741.0,96740.0,0.53865765]
[1738884706059,0.00036254,96741.0,96740.0,0.54365765]
[1738884706262,0.00036254,96741.0,96740.0,0.54465765]
[1738884706470,0.0002245,96762.0,96761.0,0.155021]
[1738884706682,0.0002245,96762.0,96761.0,0.1781131]
[1738884706872,0.0002245,96762.0,96761.0,0.155021]
[1738884707990,0.0002245,96762.0,96761.0,0.16710069]
[1738884709272,0.0012245,96762.0,96761.0,0.16710069]
[1738884709723,0.0022245,96762.0,96761.0,0.16710069]
[1738884715109,0.0022245,96762.0,96761.0,0.34973772]
[1738884715314,0.0022245,96762.0,96761.0,0.34870434]
[1738884715579,0.0022245,96762.0,96761.0,0.41187424]
[1738884716502,0.0022245,96762.0,96761.0,0.34870434]
[1738884717522,0.0022245,96762.0,96761.0,0.41960434]
[1738884718682,0.0012245,96762.0,96761.0,0.41960434]
[1738884719031,0.0012245,96762.0,96761.0,0.42260434]
[1738884719268,0.0012245,96762.0,96761.0,0.50460434]
[1738884719649,0.0002245,96762.0,96761.0,0.54662089]
[1738884720639,0.0002245,96762.0,96761.0,0.54362089]
[1738884720842,0.0002245,96762.0,96761.0,0.43060434]
[1738884720843,0.0012245,96762.0,96761.0,0.43060434]
[1738884721262,0.0002245,96762.0,96761.0,0.42160434]
[1738884721465,0.0012245,96762.0,96761.0,0.42560434]
[1738884721659,0.0012245,96762.0,96761.0,0.42760434]
[1738884721858,0.0012245,96762.0,96761.0,0.31910069]
[1738884722066,0.0012245,96762.0,96761.0,0.31710069]
[1738884722511,0.0012245,96762.0,96761.0,0.31810069]
[1738884722720,0.0022245,96762.0,96761.0,0.32410069]
[1738884723705,0.0022245,96762.0,96761.0,0.32310069]
[1738884724054,0.0002245,96762.0,96761.0,0.31810069]
[1738884724550,0.0012245,96762.0,96761.0,0.42660434]
[1738884724790,0.0012245,96762.0,96761.0,0.42560434]
[1738884725042,0.0022245,96762.0,96761.0,0.43260434]
[1738884725233,0.0022245,96762.0,96761.0,0.33010069]
[1738884729307,0.0022245,96762.0,96761.0,0.02507969]
[1738884729506,0.0022245,96762.0,96761.0,0.18010069]
[1738884729779,0.01152182,96762.0,96761.0,0.18010069]
[1738884729913,0.0022245,96762.0,96761.0,0.18010069]
[1738884730111,0.0022245,96762.0,96761.0,0.17910069]
[1738884730314,0.0002245,96762.0,96761.0,0.16710069]
[1738884730520,0.0002245,96762.0,96761.0,0.16813407]
[1738884731358,0.0002245,96762.0,96761.0,0.16913407]
[1738884731555,0.0002245,96762.0,96761.0,0.17513407]
[1738884731761,0.0012245,96762.0,96761.0,0.17513407]
[1738884732277,0.0012245,96762.0,96761.0,0.17813407]
[1738884732876,0.0012245,96762.0,96761.0,0.17610069]
[1738884733446,0.0012245,96762.0,96761.0,0.56907501]
[1738884733650,0.0002245,96762.0,96761.0,0.55904163]
[1738884733851,0.0012245,96762.0,96761.0,0.56604163]
[1738884734024,0.0012245,96762.0,96761.0,0.55904163]
[1738884734223,0.0012245,96762.0,96761.0,0.46560434]
[1738884734448,0.0012245,96762.0,96761.0,0.46760434]
[1738884734640,0.0002245,96762.0,96761.0,0.46560434]
[1738884734870,0.0002245,96762.0,96761.0,0.46760434]
[1738884734997,0.0012245,96762.0,96761.0,0.47460434]
[1738884735206,0.0012245,96762.0,96761.0,0.46760434]
[1738884735414,0.0012245,96762.0,96761.0,0.47460434]
[1738884735638,0.0022245,96762.0,96761.0,0.47460434]
[1738884736037,0.0022245,96762.0,96761.0,0.47260434]
[1738884736234,0.0022245,96762.0,96761.0,0.27860434]
[1738884736446,0.0022245,96762.0,96761.0,0.17610069]
[1738884736761,0.0002245,96762.0,96761.0,0.16710069]
[1738884736960,0.0012245,96762.0,96761.0,0.17410069]
[1738884737281,0.0012245,96762.0,96761.0,0.17610069]
[1738884737888,0.0012245,96762.0,96761.0,0.29125215]
[1738884738051,0.0012245,96762.0,96761.0,0.29021878]
[1738884738878,0.0012245,96762.0,96761.0,0.27860434]
[1738884743269,0.0012245,96762.0,96761.0,0.17610069]
[1738884744062,0.0012245,96762.0,96761.0,0.02107969]
[1738884744391,0.0012245,96762.0,96761.0,0.17610069]
[1738884745542,0.0012245,96762.0,96761.0,0.17410069]
[1738884746110,0.0002245,96762.0,96761.0,0.16710069]
[1738884746556,0.0002245,96762.0,96761.0,0.16910069]
[1738884750535,0.00952781,96762.0,96761.0,0.01407969]
[1738884750739,0.0002245,96762.0,96761.0,0.01407969]
[1738884750978,0.00952967,96762.0,96761.0,0.01407969]
[1738884751183,0.0002245,96762.0,96761.0,0.01407969]
[1738884751395,0.0095309,96762.0,96761.0,0.16910069]
[1738884751615,0.0002245,96762.0,96761.0,0.16910069]
[1738884751796,0.00952657,96762.0,96761.0,0.16910069]
[1738884751999,0.0002245,96762.0,96761.0,0.01407969]
[1738884752173,0.00952719,96762.0,96761.0,0.01407969]
[1738884752374,0.00952348,96762.0,96761.0,0.16910069]
[1738884752790,0.00952348,96762.0,96761.0,0.01407969]
[1738884753976,0.00952348,96762.0,96761.0,0.002]
[1738884754216,0.16454248,96762.0,96761.0,0.002]
[1738884754800,0.00952348,96762.0,96761.0,0.002]
[1738884755592,0.00952348,96762.0,96757.0,0.01169803]
[1738884755802,0.00952348,96762.0,96751.0,0.155037]
[1738884756018,0.00952348,96762.0,96748.0,0.206721]
[1738884756272,0.00952348,96762.0,96761.0,0.001]
[1738884756496,0.00952348,96762.0,96751.0,0.155037]
[1738884756819,0.00952348,96762.0,96757.0,0.001]
[1738884757038,0.00952348,96762.0,96748.0,0.206721]
[1738884757253,0.00952348,96762.0,96748.0,0.21934454]
[1738884757449,0.10250365,96761.0,96748.0,0.01262354]
[1738884757651,0.11180627,96761.0,96748.0,0.16666354]
[1738884757865,0.0808,96760.0,96748.0,0.01162354]
[1738884758113,0.10250365,96759.0,96741.0,0.0001068]
[1738884758313,0.206703,96757.0,96741.0,0.0001068]
[1738884758537,0.155031,96755.0,96742.0,0.15505]
[1738884758693,0.10250365,96754.0,96741.0,0.1551578]
[1738884758894,0.11179293,96754.0,96741.0,0.0001068]
[1738884759154,0.11179293,96754.0,96742.0,0.15505]
[1738884759359,0.11179293,96754.0,96741.0,0.0001068]
[1738884759562,0.11179293,96754.0,96741.0,0.01196565]
[1738884759712,0.361744,96753.0,96741.0,0.01196565]
[1738884759916,0.31850293,96754.0,96741.0,0.01196565]
[1738884759917,0.15504,96749.0,96741.0,0.0001068]
[1738884760355,0.00928558,96748.0,96741.0,0.0001068]
[1738884760828,0.30921865,96752.0,96741.0,0.0001068]
[1738884761049,0.00928496,96747.0,96741.0,0.0001068]
[1738884761255,0.155039,96750.0,96741.0,0.0001068]
[1738884761667,0.00928619,96749.0,96741.0,0.0001068]
[1738884762264,0.01228619,96749.0,96741.0,0.0001068]
[1738884763115,0.0758,96747.0,96741.0,0.0001068]
[1738884763336,0.204051,96742.0,96741.0,0.0001068]
[1738884763539,0.38235465,96742.0,96741.0,0.0001068]
[1738884763738,0.39161716,96742.0,96741.0,0.0001068]
[1738884765107,0.0753,96741.0,96715.0,0.19973749]
[1738884765379,0.0753,96739.0,96721.0,0.00013826]
[1738884765599,0.15507,96730.0,96721.0,0.00013826]
[1738884765790,0.10250365,96729.0,96721.0,0.00013826]
[1738884766081,0.11175813,96729.0,96721.0,0.00013826]
[1738884766317,0.11175813,96729.0,96721.0,0.15522326]
[1738884766574,0.11175813,96729.0,96721.0,0.00013826]
[1738884766816,0.00925448,96729.0,96728.0,0.155074]
[1738884767169,0.10250365,96729.0,96721.0,0.00013826]
[1738884767383,0.00925386,96728.0,96721.0,0.00013826]
[1738884767805,0.16432786,96728.0,96721.0,0.00013826]
[1738884768053,0.00925386,96728.0,96721.0,0.00013826]
[1738884768254,0.15508,96724.0,96721.0,0.00213826]
[1738884768495,0.155083,96722.0,96721.0,0.00213826]
[1738884768847,0.00924167,96722.0,96721.0,0.00013826]
[1738884769921,0.0474,96724.0,96721.0,0.00013826]
[1738884770552,0.00924229,96723.0,96721.0,0.00213826]
[1738884771800,0.00924229,96723.0,96721.0,0.00013826]
[1738884773746,0.16432429,96723.0,96721.0,0.00013826]
[1738884774730,0.155083,96722.0,96721.0,0.00013826]
[1738884775176,0.16432467,96722.0,96721.0,0.00013826]
[1738884776083,0.00924167,96722.0,96721.0,0.00013826]
[1738884776234,0.0828,96725.0,96721.0,0.15522326]
[1738884776584,0.00924167,96722.0,96721.0,0.15522326]
[1738884776804,0.0828,96725.0,96722.0,0.155082]
[1738884777644,0.0828,96725.0,96721.0,0.00013826]
[1738884777890,0.00924291,96724.0,96721.0,0.00013826]
[1738884779132,0.26682656,96724.0,96721.0,0.00013826]
[1738884779304,0.26782656,96724.0,96721.0,0.00013826]
[1738884779506,0.155083,96722.0,96721.0,0.00013826]
[1738884779863,0.16432467,96722.0,96721.0,0.00013826]
[1738884780311,0.26682832,96722.0,96721.0,0.00013826]
[1738884782401,0.26882832,96722.0,96721.0,0.00013826]
[1738884782609,0.26982832,96722.0,96721.0,0.00013826]
[1738884785001,0.11474532,96722.0,96721.0,0.00013826]
[1738884785200,0.01224167,96722.0,96721.0,0.15522326]
[1738884785502,0.003,96722.0,96721.0,0.15522326]
[1738884786960,0.002,96722.0,96721.0,0.15522326]
[1738884787166,0.003,96722.0,96721.0,0.15522326]
[1738884787485,0.001,96722.0,96721.0,0.17007623]
[1738884787694,0.3204,96736.0,96723.0,0.155081]
[1738884787892,0.10250365,96735.0,96723.0,0.155081]
[1738884788050,0.10250365,96735.0,96721.0,0.01499123]
[1738884788497,0.25756665,96735.0,96721.0,0.01499123]
[1738884788653,0.155065,96734.0,96721.0,0.01499123]
[1738884788861,0.10250365,96733.0,96721.0,0.01499123]
[1738884789064,0.11178693,96733.0,96723.0,0.001]
[1738884789375,0.11178693,96733.0,96721.0,0.17007523]
[1738884789585,0.11178693,96733.0,96721.0,0.01499123]
[1738884789922,0.155071,96730.0,96721.0,0.00013826]
[1738884790220,0.10250365,96729.0,96721.0,0.00013826]
[1738884790347,0.11178446,96729.0,96721.0,0.00013826]
[1738884790709,0.11178446,96729.0,96721.0,0.00113826]
[1738884791084,0.11178446,96729.0,96721.0,0.00013826]
[1738884792109,0.11478446,96729.0,96721.0,0.00013826]
[1738884792412,0.26985746,96729.0,96721.0,0.00013826]
[1738884792551,0.11578446,96729.0,96721.0,0.00013826]
[1738884792758,0.155083,96722.0,96721.0,0.00013826]
[1738884792999,0.11578446,96729.0,96721.0,0.00013826]
[1738884793216,0.00927649,96722.0,96721.0,0.00013826]
[1738884793603,0.155079,96725.0,96721.0,0.00013826]
[1738884794132,0.00926149,96724.0,96721.0,0.00013826]
[1738884795211,0.16434149,96724.0,96721.0,0.00013826]
[1738884795626,0.16534149,96724.0,96721.0,0.00013826]
[1738884795827,0.01126149,96724.0,96721.0,0.00013826]
[1738884797966,0.01126149,96724.0,96723.0,0.155082]
[1738884798637,0.002,96724.0,96723.0,0.155082]
[1738884798847,0.001,96724.0,96723.0,0.155082]
[1738884799010,0.10272793,96729.0,96722.0,0.206778]
[1738884799209,0.10272793,96729.0,96728.0,0.155074]
[1738884799646,0.10272793,96729.0,96727.0,0.155075]
[1738884800845,0.10672793,96729.0,96727.0,0.155075]
[1738884801048,0.10672793,96729.0,96726.0,0.155076]
[1738884801289,0.00926087,96728.0,96726.0,0.155076]
[1738884801568,0.11176452,96728.0,96726.0,0.155076]
[1738884801779,0.11176452,96728.0,96721.0,0.00013826]
[1738884802156,0.11176452,96728.0,96722.0,0.206778]
[1738884802564,0.11176452,96728.0,96725.0,0.155078]
[1738884802765,0.11176452,96728.0,96723.0,0.15508]
[1738884802971,0.10250365,96728.0,96725.0,0.155078]
[1738884803345,0.00926025,96727.0,96725.0,0.155078]
[1738884803553,0.00926025,96727.0,96726.0,0.155077]
[1738884804195,0.10750365,96728.0,96726.0,0.155077]
[1738884804354,0.00926025,96727.0,96726.0,0.155077]
[1738884804541,0.002,96727.0,96726.0,0.155077]
[1738884804750,0.01126025,96727.0,96726.0,0.155077]
[1738884804955,0.003,96727.0,96726.0,0.155077]
[1738884805157,0.01226025,96727.0,96722.0,0.155082]
[1738884805533,0.00925963,96726.0,96721.0,0.00013826]
[1738884805807,0.00925963,96726.0,96725.0,0.155078]
[1738884806160,0.001,96727.0,96726.0,0.155077]
[1738884806382,0.10250365,96728.0,96726.0,0.155077]
[1738884806587,0.01026025,96727.0,96726.0,0.155077]
[1738884806967,0.01226025,96727.0,96726.0,0.155077]
[1738884807180,0.01126025,96727.0,96726.0,0.155077]
[1738884807406,0.002,96727.0,96726.0,0.155077]
[1738884807636,0.003,96727.0,96726.0,0.155077]
[1738884808020,0.01226025,96727.0,96726.0,0.155077]
[1738884808253,0.003,96727.0,96726.0,0.155077]
[1738884808455,0.01226025,96727.0,96726.0,0.155077]
[1738884810481,0.003,96727.0,96726.0,0.155077]
[1738884815344,0.003,96727.0,96726.0,0.1696909]
[1738884817008,0.003,96727.0,96726.0,0.0146139]
[1738884817141,0.01226123,96727.0,96726.0,0.0146139]
[1738884817343,0.01226123,96727.0,96721.0,0.00013826]
[1738884817950,0.155077,96726.0,96721.0,0.00013826]
[1738884818158,0.16434194,96726.0,96721.0,0.00013826]
[1738884818625,0.00926494,96726.0,96721.0,0.00013826]
[1738884819004,0.16434194,96726.0,96721.0,0.00013826]
[1738884819213,0.16434194,96726.0,96721.0,0.01505387]
[1738884819359,0.00926494,96726.0,96721.0,0.01505387]
[1738884819764,0.16534194,96726.0,96721.0,0.01505387]
[1738884819971,0.155078,96725.0,96721.0,0.01505387]
[1738884820233,0.01026494,96726.0,96721.0,0.01505387]
[1738884820391,0.0092637,96724.0,96721.0,0.01505387]
[1738884820589,0.00926432,96725.0,96721.0,0.01505387]
[1738884820900,0.002,96726.0,96721.0,0.01505387]
[1738884821106,0.0092637,96724.0,96721.0,0.01505387]
[1738884821306,0.002,96726.0,96721.0,0.01505387]
[1738884821531,0.00926308,96723.0,96721.0,0.01505387]
[1738884821739,0.00022428,96727.0,96721.0,0.01505387]
[1738884821924,0.00926247,96722.0,96721.0,0.01505387]
[1738884822122,0.001,96725.0,96721.0,0.01505387]
[1738884822295,0.00926247,96722.0,96721.0,0.01505387]
[1738884822536,0.00022428,96727.0,96721.0,0.01505387]
[1738884822741,0.00926247,96722.0,96721.0,0.17013787]
[1738884823059,0.001,96725.0,96724.0,0.15508]
[1738884824194,0.00022428,96727.0,96724.0,0.15508]
[1738884824387,0.00022428,96727.0,96726.0,0.155077]
[1738884824929,0.00022428,96727.0,96724.0,0.15508]
[1738884825271,0.001,96725.0,96721.0,0.17013787]
[1738884825492,0.001,96725.0,96722.0,0.155082]
[1738884825628,0.00022428,96727.0,96721.0,0.01505387]
[1738884825828,0.00925966,96726.0,96721.0,0.17013787]
[1738884826554,0.00925966,96726.0,96723.0,0.155081]
[1738884827727,0.002,96726.0,96723.0,0.155081]
[1738884827929,0.00122428,96727.0,96723.0,0.155081]
[1738884828125,0.00925904,96725.0,96721.0,0.01505387]
[1738884828290,0.00022428,96727.0,96724.0,0.15508]
[1738884828991,0.001,96726.0,96721.0,0.01505387]
[1738884829192,0.003,96726.0,96721.0,0.01505387]
[1738884829386,0.002,96726.0,96721.0,0.01505387]
[1738884830050,0.002,96726.0,96721.0,0.17013887]
[1738884830260,0.00022428,96727.0,96721.0,0.17013887]
[1738884830459,0.002,96726.0,96721.0,0.17013887]
[1738884830657,0.002,96726.0,96721.0,0.01505387]
[1738884831080,0.206771,96725.0,96721.0,0.00013826]
[1738884831229,0.155083,96722.0,96721.0,0.00013826]
[1738884832371,0.25758665,96722.0,96721.0,0.00013826]
[1738884834181,0.26058665,96722.0,96721.0,0.00013826]
[1738884834956,0.26258665,96722.0,96721.0,0.00013826]
[1738884835130,0.10750365,96722.0,96696.0,0.13647686]
[1738884835338,0.155114,96703.0,96696.0,0.13693828]
[1738884835859,0.08494683,96720.0,96696.0,0.00046142]
[1738884835860,0.155123,96697.0,96696.0,0.00046142]
[1738884836080,0.25762665,96697.0,96696.0,0.00046142]
[1738884836494,0.28062665,96697.0,96696.0,0.00046142]
[1738884836946,0.28062665,96697.0,96696.0,0.00446142]
[1738884837104,0.28062665,96697.0,96696.0,0.00046142]
[1738884837437,0.28962665,96697.0,96696.0,0.00146142]
[1738884837639,0.28962665,96697.0,96696.0,0.00046142]
[1738884837981,0.29862665,96697.0,96696.0,0.00146142]
[1738884838180,0.29962665,96697.0,96696.0,0.00146142]
[1738884839226,0.29862665,96697.0,96696.0,0.00146142]
[1738884839427,0.30162665,96697.0,96696.0,0.00146142]
[1738884839805,0.28362665,96697.0,96696.0,0.00046142]
[1738884840010,0.29162665,96697.0,96696.0,0.00046142]
[1738884840365,0.11350365,96697.0,96670.0,0.12956826]
[1738884840489,0.10250365,96696.0,96670.0,4.61e-05]
[1738884840691,0.155147,96683.0,96672.0,0.155162]
[1738884840909,0.10250365,96683.0,96675.0,0.155157]
[1738884841114,0.15515,96681.0,96670.0,4.61e-05]
[1738884841309,0.15515,96681.0,96671.0,0.155163]
[1738884841548,0.10250365,96683.0,96670.0,4.61e-05]
[1738884842012,0.10250365,96683.0,96673.0,0.155161]
[1738884842209,0.155148,96682.0,96673.0,0.155161]
[1738884842443,0.155148,96682.0,96670.0,4.61e-05]
[1738884842444,0.155149,96681.0,96670.0,0.1552111]
[1738884842751,0.155149,96681.0,96671.0,0.155165]
[1738884843299,0.15715,96681.0,96670.0,0.2069341]
[1738884843497,0.41374,96679.0,96670.0,4.61e-05]
[1738884843723,0.10250365,96680.0,96670.0,4.61e-05]
[1738884843724,0.155165,96671.0,96670.0,4.61e-05]
[1738884843924,0.25766865,96671.0,96670.0,4.61e-05]
[1738884844320,0.25766865,96671.0,96670.0,0.0001529]
[1738884845027,0.33996865,96671.0,96670.0,0.0001529]
[1738884845226,0.34096865,96671.0,96670.0,0.0001529]
[1738884846028,0.34096865,96671.0,96670.0,0.0011529]
[1738884846378,0.34096865,96671.0,96670.0,0.0001529]
[1738884846713,0.34296865,96671.0,96670.0,0.0001529]
[1738884848403,0.41376865,96671.0,96670.0,0.0001529]
[1738884848583,0.56376865,96671.0,96670.0,0.0001529]
[1738884848794,0.90204865,96671.0,96670.0,0.0001529]
[1738884849381,0.90004865,96671.0,96670.0,0.0001529]
[1738884849815,0.90804865,96671.0,96670.0,0.0001529]
[1738884850185,0.01,96670.0,96641.0,0.06418971]
[1738884850376,0.01,96670.0,96631.0,0.28968841]
[1738884850377,0.155228,96632.0,96631.0,0.08271641]
[1738884850509,0.25773165,96632.0,96631.0,0.08285466]
[1738884850903,0.25773165,96632.0,96631.0,0.00013825]
[1738884851908,0.25873165,96632.0,96631.0,0.00013825]
[1738884853043,0.26173165,96632.0,96631.0,0.00013825]
[1738884853972,0.10650365,96632.0,96631.0,0.00013825]
[1738884855185,0.10650365,96632.0,96625.0,0.155238]
[1738884855535,0.10250365,96631.0,96625.0,0.00013833]
[1738884857033,0.20698,96628.0,96625.0,0.00013833]
[1738884857279,0.155237,96626.0,96625.0,0.00013833]
[1738884858983,0.25774065,96626.0,96625.0,0.00013833]
[1738884860831,0.26974065,96626.0,96625.0,0.00013833]
[1738884861239,0.26674065,96626.0,96625.0,0.00013833]
[1738884861770,0.46794065,96626.0,96625.0,0.00013833]
[1738884862509,0.81134065,96626.0,96625.0,0.00013833]
[1738884862710,0.88874065,96626.0,96625.0,0.00013833]
[1738884865116,0.173,96625.0,96596.0,0.01396354]
[1738884865315,0.155276,96602.0,96601.0,4.614e-05]
[1738884866031,0.15,96615.0,96601.0,4.614e-05]
[1738884866247,0.155265,96609.0,96601.0,0.15532214]
[1738884866458,0.10250365,96608.0,96601.0,0.15532214]
[1738884866667,0.155273,96604.0,96601.0,4.614e-05]
[1738884866906,0.155275,96603.0,96601.0,4.614e-05]
[1738884868087,0.155272,96605.0,96601.0,0.00015304]
[1738884868269,0.10250365,96608.0,96603.0,0.155274]
[1738884868412,0.25777065,96608.0,96601.0,0.15542904]
[1738884868595,0.10250365,96608.0,96601.0,0.00015304]
[1738884869231,0.155273,96604.0,96601.0,0.00015304]
[1738884869439,0.10250365,96608.0,96601.0,0.00015304]
[1738884869664,0.155276,96602.0,96601.0,0.00015304]
[1738884870741,0.156276,96602.0,96601.0,0.00015304]
[1738884871350,0.155276,96602.0,96601.0,0.00015304]
[1738884871680,0.156276,96602.0,96601.0,0.00015304]
[1738884872442,0.160276,96602.0,96601.0,0.00015304]
[1738884872667,0.155276,96602.0,96601.0,0.00015304]
[1738884873002,0.160276,96602.0,96601.0,0.00015304]
[1738884873162,0.001,96602.0,96601.0,0.00015304]
[1738884873570,0.004,96602.0,96601.0,0.00015304]
[1738884873777,0.005,96602.0,96601.0,0.00015304]
[1738884873968,0.005,96602.0,96601.0,0.15543004]
[1738884874197,0.005,96602.0,96601.0,0.00015304]
[1738884874402,0.004,96602.0,96601.0,0.00015304]
[1738884874615,0.005,96602.0,96601.0,0.00015304]
[1738884874809,0.001,96602.0,96601.0,0.00015304]
[1738884875109,0.005,96602.0,96601.0,0.00015304]
[1738884875253,0.001,96602.0,96601.0,0.15543004]
[1738884875661,0.004,96602.0,96601.0,0.00015304]
[1738884875903,0.003,96602.0,96601.0,0.00015304]
[1738884876317,0.004,96602.0,96601.0,0.00015304]
[1738884876962,0.159276,96602.0,96601.0,0.00015304]
[1738884878541,0.156276,96602.0,96601.0,0.00015304]
[1738884878697,0.159276,96602.0,96601.0,0.00015304]
[1738884879075,0.158276,96602.0,96601.0,0.00015304]
[1738884879209,0.159276,96602.0,96601.0,0.00015304]
[1738884879802,0.158276,96602.0,96601.0,0.00015304]
[1738884880250,0.15950071,96602.0,96601.0,0.00015304]
[1738884880648,0.15850071,96602.0,96601.0,0.00015304]
[1738884881007,0.25800436,96602.0,96601.0,0.00015304]
[1738884881388,0.26200436,96602.0,96601.0,0.00015304]
[1738884881589,0.25800436,96602.0,96601.0,0.00015304]
[1738884881830,0.26200436,96602.0,96601.0,0.00015304]
[1738884882016,0.26300436,96602.0,96601.0,0.00015304]
[1738884889005,0.27227094,96602.0,96601.0,0.00015304]
[1738884899022,0.01449129,96602.0,96601.0,0.15543004]
[1738884899275,0.00522471,96602.0,96601.0,0.15543004]
[1738884900022,0.00522471,96602.0,96601.0,0.00015304]
[1738884900264,0.00522471,96602.0,96601.0,0.0137278]
[1738884900493,0.00422471,96602.0,96601.0,0.00015304]
[1738884900929,0.00122471,96602.0,96601.0,0.00015304]
[1738884901386,0.00022471,96602.0,96601.0,0.00015304]
[1738884901589,0.00949511,96602.0,96601.0,0.00015304]
[1738884901915,0.01349511,96602.0,96601.0,0.00115304]
[1738884902170,0.00949511,96602.0,96601.0,0.00015304]
[1738884902624,0.00422471,96602.0,96601.0,0.00015304]
[1738884903764,0.01349436,96602.0,96601.0,0.00015304]
[1738884904171,0.01549436,96602.0,96601.0,0.00015304]
[1738884904612,0.01649436,96602.0,96601.0,0.00015304]
[1738884905235,0.17177036,96602.0,96601.0,0.00015304]
[1738884905944,0.01649436,96602.0,96601.0,0.00015304]
[1738884906293,0.00722471,96602.0,96601.0,0.00015304]
[1738884906499,0.01649994,96602.0,96601.0,0.00015304]
[1738884906906,0.01649994,96602.0,96601.0,0.15543004]
[1738884907107,0.00722471,96602.0,96601.0,0.00015304]
[1738884907306,0.16250071,96602.0,96601.0,0.00015304]
[1738884907512,0.1717685,96602.0,96601.0,0.00015304]
[1738884916826,0.27427215,96602.0,96601.0,0.00015304]
[1738884919593,0.32257215,96602.0,96601.0,0.00015304]
[1738884920225,0.155305,96584.0,96578.0,0.04110856]
[1738884920424,0.00925693,96583.0,96578.0,0.04157016]
[1738884921521,0.00925693,96583.0,96578.0,0.04257016]
[1738884921720,0.155313,96579.0,96578.0,0.0014616]
[1738884921892,0.25781665,96579.0,96578.0,0.0004616]
[1738884922097,0.11174078,96579.0,96578.0,0.0004616]
[1738884922303,0.11174078,96579.0,96578.0,0.0014616]